fUST/lending_fUST_20250124
["ID","MTS","AMOUNT","RATE_DAILY","PERIOD"]
[350202689,1737687056373,-502.22,0.00021095,3]
[350202690,1737687056382,-1032.07,0.00021095,3]
[350202691,1737687056393,-551.71,0.00021095,3]
[350202692,1737687056402,-606.17,0.00021095,3]
[350202693,1737687056411,-500.0,0.00021095,3]
[350202694,1737687056425,-500.0,0.00021095,3]
[350202695,1737687056435,-500.0,0.00021095,3]
[350202696,1737687056444,-223.944241,0.0002111,2]
[350202697,1737687056454,-151.0,0.0002111,2]
[350202698,1737687056463,-880.95451252,0.00021141,2]
[350202699,1737687056473,-4905.61,0.000212,2]
[350202700,1737687056483,-7818.38,0.000212,2]
[350202701,1737687056492,-1500.0,0.00021228,2]
[350202702,1737687056502,-151.0,0.00021232,2]
[350202703,1737687056511,-2755.07,0.00021232,3]
[350202704,1737687056521,-2566.35,0.00021232,3]
[350202705,1737687056531,-500.0,0.00021232,3]
[350202706,1737687056540,-1164.35,0.00021232,3]
[350202707,1737687056549,-2794.98,0.00021232,3]
[350202708,1737687056558,-841.46,0.00021232,3]
[350202709,1737687056568,-500.0,0.00021232,3]
[350202710,1737687056577,-888.16,0.00021232,3]
[350202711,1737687056587,-500.0,0.00021232,3]
[350202712,1737687056596,-500.0,0.00021232,3]
[350202713,1737687056606,-500.0,0.00021232,3]
[350202714,1737687056616,-678.28,0.00021232,3]
[350202715,1737687056625,-12181.58,0.00021232,3]
[350202716,1737687056634,-500.0,0.00021232,3]
[350202717,1737687056643,-581.2,0.00021232,3]
[350202718,1737687056653,-1061.46,0.00021232,3]
[350202719,1737687056662,-500.0,0.00021232,3]
[350202720,1737687056676,-2173.92,0.00021232,3]
[350202721,1737687056686,-1202.1,0.00021232,3]
[350202722,1737687056695,-1819.3,0.00021232,3]
[350202723,1737687056706,-500.0,0.00021232,3]
[350202724,1737687056716,-522.76,0.00021232,3]
[350202725,1737687056725,-2877.86,0.00021232,3]
[350202726,1737687056735,-536.13,0.00021232,3]
[350202727,1737687056744,-502.22,0.00021232,3]
[350202728,1737687056754,-1032.07,0.00021232,3]
[350202729,1737687056763,-551.71,0.00021232,3]
[350202730,1737687056774,-606.17,0.00021232,3]
[350202731,1737687056783,-500.0,0.00021232,3]
[350202732,1737687056792,-500.0,0.00021232,3]
[350202733,1737687056802,-500.0,0.00021232,3]
[350202734,1737687056811,-823.0,0.00021245,2]
[350202735,1737687056820,-241.271649,0.00021246,2]
[350202736,1737687056830,-880.95451252,0.00021279,2]
[350202737,1737687056839,-159.58041,0.00021318,5]
[350202738,1737687056848,-2755.07,0.00021369,3]
[350202739,1737687056858,-2566.35,0.00021369,3]
[350202740,1737687056868,-500.0,0.00021369,3]
[350202741,1737687056878,-1164.35,0.00021369,3]
[350202742,1737687056887,-2794.98,0.00021369,3]
[350202743,1737687056896,-841.46,0.00021369,3]
[350202744,1737687056906,-500.0,0.00021369,3]
[350202745,1737687056915,-888.16,0.00021369,3]
[350202746,1737687056933,-500.0,0.00021369,3]
[350202747,1737687056943,-500.0,0.00021369,3]
[350202748,1737687056953,-500.0,0.00021369,3]
[350202749,1737687056962,-678.28,0.00021369,3]
[350202750,1737687056971,-12181.58,0.00021369,3]
[350202751,1737687056981,-500.0,0.00021369,3]
[350202752,1737687056990,-581.2,0.00021369,3]
[350202753,1737687057063,-1061.46,0.00021369,3]
[350202754,1737687057073,-500.0,0.00021369,3]
[350202755,1737687057083,-2173.92,0.00021369,3]
[350202756,1737687057092,-1202.1,0.00021369,3]
[350202757,1737687057102,-1819.3,0.00021369,3]
[350202758,1737687057111,-500.0,0.00021369,3]
[350202759,1737687057121,-522.76,0.00021369,3]
[350202760,1737687057131,-2877.86,0.00021369,3]
[350202761,1737687057140,-536.13,0.00021369,3]
[350202762,1737687057150,-502.22,0.00021369,3]
[350202763,1737687057160,-1032.07,0.00021369,3]
[350202764,1737687057173,-551.71,0.00021369,3]
[350202765,1737687057183,-606.17,0.00021369,3]
[350202766,1737687057191,-500.0,0.00021369,3]
[350202767,1737687057201,-500.0,0.00021369,3]
[350202768,1737687057211,-500.0,0.00021369,3]
[350202769,1737687057220,-151.0,0.000214,3]
[350202770,1737687057230,-880.95451252,0.00021417,2]
[350202771,1737687057240,-9699.31366008,0.00021497,2]
[350202772,1737687057250,-151.0,0.00021506,2]
[350202773,1737687057260,-201.4958266,0.00021506,2]
[350202774,1737687057270,-2755.07,0.00021506,3]
[350202775,1737687057280,-2566.35,0.00021506,3]
[350202776,1737687057290,-500.0,0.00021506,3]
[350202777,1737687057299,-1164.35,0.00021506,3]
[350202778,1737687057309,-2794.98,0.00021506,3]
[350202779,1737687057318,-841.46,0.00021506,3]
[350202780,1737687057328,-500.0,0.00021506,3]
[350202781,1737687057338,-888.16,0.00021506,3]
[350202782,1737687057348,-500.0,0.00021506,3]
[350202783,1737687057357,-500.0,0.00021506,3]
[350202784,1737687057367,-627.11596354,0.00021506,3]
[350202785,1737687057377,-678.28,0.00021506,3]
[350202786,1737687057387,-12181.58,0.00021506,3]
[350202787,1737687057397,-500.0,0.00021506,3]
[350202788,1737687057407,-581.2,0.00021506,3]
[350202789,1737687057417,-1061.46,0.00021506,3]
[350202790,1737687057429,-500.0,0.00021506,3]
[350202791,1737687057439,-2173.92,0.00021506,3]
[350202792,1737687057449,-1202.1,0.00021506,3]
[350202793,1737687057458,-1819.3,0.00021506,3]
[350202794,1737687057468,-500.0,0.00021506,3]
[350202795,1737687057478,-522.76,0.00021506,3]
[350202796,1737687057488,-2877.86,0.00021506,3]
[350202797,1737687057498,-536.13,0.00021506,3]
[350202798,1737687057508,-502.22,0.00021506,3]
[350202799,1737687057518,-1032.07,0.00021506,3]
[350202800,1737687057528,-551.71,0.00021506,3]
[350202801,1737687057537,-606.17,0.00021506,3]
[350202802,1737687057546,-500.0,0.00021506,3]
[350202803,1737687057556,-500.0,0.00021506,3]
[350202804,1737687057566,-315.95,0.00021506,3]
[350202805,1737687057576,-249.916237,0.0002152,2]
[350202806,1737687057586,-249.916237,0.0002152,2]
[350202807,1737687057595,-151.0,0.0002152,2]
[350202808,1737687057605,-225.026717,0.0002152,2]
[350202809,1737687057614,-880.95451252,0.00021555,2]
[350202810,1737687057623,-160.0,0.00021557,3]
[350202811,1737687057633,-159.58041,0.0002156,10]
[350202812,1737687057642,-159.58041,0.00021597,5]
[350202813,1737687057652,-1500.0,0.000216,2]
[350202814,1737687057662,-159.58041,0.000216,2]
[350202815,1737687057671,-500.0,0.00021633,2]
[350202816,1737687057681,-500.0,0.00021633,2]
[350202817,1737687057690,-2755.07,0.00021643,3]
[350202818,1737687057700,-2566.35,0.00021643,3]
[350202819,1737687057710,-500.0,0.00021643,3]
[350202820,1737687057719,-1164.35,0.00021643,3]
[350202821,1737687057728,-2794.98,0.00021643,3]
[350202822,1737687057737,-841.46,0.00021643,3]
[350202823,1737687057748,-500.0,0.00021643,3]
[350202824,1737687057757,-888.16,0.00021643,3]
[350202825,1737687057767,-500.0,0.00021643,3]
[350202826,1737687057777,-327.93252766,0.00021643,3]
[350202827,1737687057787,-678.28,0.00021643,3]
[350202828,1737687057798,-12181.58,0.00021643,3]
[350202829,1737687057807,-500.0,0.00021643,3]
[350202830,1737687057817,-581.2,0.00021643,3]
[350202831,1737687057826,-1061.46,0.00021643,3]
[350202832,1737687057836,-500.0,0.00021643,3]
[350202833,1737687057846,-2173.92,0.00021643,3]
[350202834,1737687057855,-1202.1,0.00021643,3]
[350202835,1737687057865,-1819.3,0.00021643,3]
[350202836,1737687057874,-500.0,0.00021643,3]
[350202837,1737687057884,-522.76,0.00021643,3]
[350202838,1737687057893,-2877.86,0.00021643,3]
[350202839,1737687057903,-536.13,0.00021643,3]
[350202840,1737687057913,-502.22,0.00021643,3]
[350202841,1737687057924,-1032.07,0.00021643,3]
[350202842,1737687057934,-551.71,0.00021643,3]
[350202843,1737687057944,-606.17,0.00021643,3]
[350202844,1737687057954,-500.0,0.00021643,3]
[350202845,1737687057964,-500.0,0.00021643,3]
[350202846,1737687057974,-880.95451252,0.00021693,3]
[350202847,1737687057983,-2755.07,0.0002178,3]
[350202848,1737687057993,-2566.35,0.0002178,3]
[350202849,1737687058003,-153.76,0.0002178,3]
[350202850,1737687058013,-1164.35,0.0002178,3]
[350202851,1737687058023,-2794.98,0.0002178,3]
[350202852,1737687058032,-841.46,0.0002178,3]
[350202853,1737687058041,-500.0,0.0002178,3]
[350202854,1737687058051,-888.16,0.0002178,3]
[350202855,1737687058060,-269.74,0.0002178,3]
[350202856,1737687058070,-678.28,0.0002178,3]
[350202857,1737687058079,-12181.58,0.0002178,3]
[350202858,1737687058089,-500.0,0.0002178,3]
[350202859,1737687058099,-581.2,0.0002178,3]
[350202860,1737687058109,-1061.46,0.0002178,3]
[350202861,1737687058118,-500.0,0.0002178,3]
[350202862,1737687058128,-2173.92,0.0002178,3]
[350202863,1737687058139,-1202.1,0.0002178,3]
[350202864,1737687058149,-1819.3,0.0002178,3]
[350202865,1737687058159,-500.0,0.0002178,3]
[350202866,1737687058169,-522.76,0.0002178,3]
[350202867,1737687058179,-2877.86,0.0002178,3]
[350202868,1737687058251,-536.13,0.0002178,3]
[350202869,1737687058261,-502.22,0.0002178,3]
[350202870,1737687058271,-1032.07,0.0002178,3]
[350202871,1737687058280,-551.71,0.0002178,3]
[350202872,1737687058290,-606.17,0.0002178,3]
[350202873,1737687058300,-500.0,0.0002178,3]
[350202874,1737687058311,-434.57077052,0.0002178,3]
[350202875,1737687058321,-188.0,0.000218,2]
[350202876,1737687058331,-151.0,0.000218,3]
[350202877,1737687058340,-880.95451252,0.00021831,3]
[350202878,1737687058351,-159.58041,0.00021854,7]
[350202879,1737687058361,-32815.00576675,0.00021898,3]
[350202880,1737687058371,-241.271649,0.00021898,2]
[350202881,1737687058380,-151.0,0.00021898,2]
[350202882,1737687058390,-249.916237,0.00021898,2]
[350202883,1737687058400,-249.916237,0.00021898,2]
[350202884,1737687058413,-151.0,0.00021898,2]
[350202885,1737687058426,-185.93009941,0.00021899,5]
[350202886,1737687058436,-500.0,0.00021917,3]
[350202887,1737687058447,-500.0,0.00021917,3]
[350202888,1737687058458,-503.77727545,0.00021917,3]
[350202889,1737687058469,-1000.0,0.00021917,2]
[350202890,1737687058479,-1000.0,0.00021917,2]
[350202891,1737687058489,-1047.12192897,0.00021917,2]
[350202892,1737687058498,-151.0,0.00021917,2]
[350202893,1737687058508,-208.860086,0.00021917,2]
[350202894,1737687058519,-500.0,0.00021917,3]
[350202895,1737687058529,-2755.07,0.00021917,3]
[350202896,1737687058539,-500.0,0.00021917,2]
[350202897,1737687058550,-500.0,0.00021917,3]
[350202898,1737687058560,-500.0,0.00021917,3]
[350202899,1737687058571,-500.0,0.00021917,3]
[350202900,1737687058581,-500.0,0.00021917,3]
[350202901,1737687058590,-500.0,0.00021917,3]
[350202902,1737687058600,-500.0,0.00021917,3]
[350202903,1737687058610,-500.0,0.00021917,3]
[350202904,1737687058620,-500.0,0.00021917,3]
[350202905,1737687058629,-512.67625956,0.00021917,3]
[350202906,1737687058638,-2566.35,0.00021917,3]
[350202907,1737687058648,-500.0,0.00021917,3]
[350202908,1737687058658,-269.97602124,0.00021917,3]
[350202909,1737687058668,-1164.35,0.00021917,3]
[350202910,1737687058679,-2794.98,0.00021917,3]
[350202911,1737687058689,-841.46,0.00021917,3]
[350202912,1737687058700,-500.0,0.00021917,3]
[350202913,1737687058710,-888.16,0.00021917,3]
[350202914,1737687058720,-678.28,0.00021917,3]
[350202915,1737687058730,-12181.58,0.00021917,3]
[350202916,1737687058739,-500.0,0.00021917,3]
[350202917,1737687058750,-581.2,0.00021917,3]
[350202918,1737687058760,-1061.46,0.00021917,3]
[350202919,1737687058770,-404.86592809,0.00021917,3]
[350202920,1737687058779,-2173.92,0.00021917,3]
[350202921,1737687058789,-1202.1,0.00021917,3]
[350202922,1737687058798,-1819.3,0.00021917,3]
[350202923,1737687058808,-500.0,0.00021917,3]
[350202924,1737687058818,-225.62846314,0.00021917,3]
[350202925,1737687058827,-522.76,0.00021917,3]
[350202926,1737687058837,-150.84308866,0.00021917,3]
[350202927,1737687058847,-2877.86,0.00021917,3]
[350202928,1737687058856,-536.13,0.00021917,3]
[350202929,1737687058866,-502.22,0.00021917,3]
[350202930,1737687058875,-500.0,0.00021917,3]
[350202931,1737687058886,-500.0,0.00021917,3]
[350202932,1737687058895,-228.12594492,0.00021917,3]
[350202933,1737687058905,-1032.07,0.00021917,3]
[350202934,1737687058914,-551.71,0.00021917,3]
[350202935,1737687058926,-606.17,0.00021917,3]
[350202936,1737687058938,-188.4,0.00021917,3]
[350202937,1737687058947,-219.81203941,0.00021918,3]
[350202938,1737687058956,-500.0,0.00021918,3]
[350202939,1737687058966,-166.98,0.0002192,2]
[350202940,1737687058977,-166.98,0.0002192,2]
[350202941,1737687058987,-166.98,0.0002192,2]
[350202942,1737687058997,-166.98,0.0002192,2]
[350202943,1737687059007,-166.98,0.0002192,2]
[350202944,1737687059017,-166.98,0.0002192,2]
[350202945,1737687059027,-166.98,0.0002192,2]
[350202946,1737687059036,-880.95451252,0.00021969,3]
[350202947,1737687059046,-500.0,0.00021973,2]
[350202948,1737687059056,-99882.16169624,0.0002199,7]
[350202949,1737687059065,-241.271649,0.0002199,7]
[350202950,1737687059076,-151.0,0.0002199,7]
[350202951,1737687059085,-249.916237,0.0002199,7]
[350202952,1737687059095,-249.916237,0.0002199,7]
[350202953,1737687059105,-151.0,0.0002199,7]
[350202954,1737687059114,-151.0,0.0002199,7]
[350202955,1737687059123,-345.48356926,0.00022,2]
[350202956,1737687059133,-24464.14153856,0.00022,2]
[350202957,1737687059142,-1000.0,0.00022,2]
[350202958,1737687059152,-500.0,0.00022042,2]
[350202959,1737687059161,-2755.07,0.00022054,3]
[350202960,1737687059172,-2566.35,0.00022054,3]
[350202961,1737687059182,-1164.35,0.00022054,3]
[350202962,1737687059191,-2794.98,0.00022054,3]
[350202963,1737687059200,-841.46,0.00022054,3]
[350202964,1737687059210,-500.0,0.00022054,3]
[350202965,1737687059220,-888.16,0.00022054,3]
[350202966,1737687059230,-678.28,0.00022054,3]
[350202967,1737687059240,-12181.58,0.00022054,3]
[350202968,1737687059249,-500.0,0.00022054,3]
[350202969,1737687059259,-581.2,0.00022054,3]
[350202970,1737687059268,-1061.46,0.00022054,3]
[350202971,1737687059278,-2173.92,0.00022054,3]
[350202972,1737687059288,-1202.1,0.00022054,3]
[350202973,1737687059357,-1819.3,0.00022054,3]
[350202974,1737687059367,-309.47,0.00022054,3]
[350202975,1737687059378,-522.76,0.00022054,3]
[350202976,1737687059387,-2877.86,0.00022054,3]
[350202977,1737687059397,-536.13,0.00022054,3]
[350202978,1737687059406,-502.22,0.00022054,3]
[350202979,1737687059416,-1032.07,0.00022054,3]
[350202980,1737687059428,-551.71,0.00022054,3]
[350202981,1737687059438,-606.17,0.00022054,3]
[350202982,1737687059447,-691.12850119,0.000221,2]
[350202983,1737687059457,-151.0,0.000221,10]
[350202984,1737687059465,-880.95451252,0.00022107,3]
[350202985,1737687059476,-1024.08379313,0.00022181,2]
[350202986,1737687059486,-1000.0,0.00022181,2]
[350202987,1737687059496,-928.91236722,0.00022191,3]
[350202988,1737687059506,-500.0,0.00022191,3]
[350202989,1737687059515,-500.0,0.00022191,3]
[350202990,1737687059525,-852.8102783,0.00022191,3]
[350202991,1737687059535,-2755.07,0.00022191,3]
[350202992,1737687059546,-2566.35,0.00022191,3]
[350202993,1737687059555,-1164.35,0.00022191,3]
[350202994,1737687059565,-2794.98,0.00022191,3]
[350202995,1737687059574,-841.46,0.00022191,3]
[350202996,1737687059583,-500.0,0.00022191,3]
[350202997,1737687059592,-888.16,0.00022191,3]
[350202998,1737687059602,-678.28,0.00022191,3]
[350202999,1737687059612,-12181.58,0.00022191,3]
[350203000,1737687059621,-517.14058065,0.00022191,3]
[350203001,1737687059631,-581.2,0.00022191,3]
[350203002,1737687059640,-1061.46,0.00022191,3]
[350203003,1737687059650,-2173.92,0.00022191,3]
[350203004,1737687059659,-1202.1,0.00022191,3]
[350203005,1737687059668,-1819.3,0.00022191,3]
[350203006,1737687059679,-522.76,0.00022191,3]
[350203007,1737687059689,-536.13,0.00022191,3]
[350203008,1737687059705,-502.22,0.00022191,3]
[350203009,1737687059715,-2877.86,0.00022191,3]
[350203010,1737687059725,-1032.07,0.00022191,3]
[350203011,1737687059735,-551.71,0.00022191,3]
[350203012,1737687059745,-606.17,0.00022191,3]
[350203013,1737687059755,-500.0,0.00022192,3]
[350203014,1737687059764,-880.95451252,0.00022245,3]
[350203015,1737687059774,-160.0,0.00022253,4]
[350203016,1737687059784,-56321.79020568,0.000223,7]
[350203017,1737687059794,-241.271649,0.000223,7]
[350203018,1737687059803,-151.0,0.000223,7]
[350203019,1737687059813,-249.916237,0.000223,7]
[350203020,1737687059822,-249.916237,0.000223,7]
[350203021,1737687059831,-249.916237,0.000223,7]
[350203022,1737687059841,-249.916237,0.000223,7]
[350203023,1737687059851,-151.0,0.000223,7]
[350203024,1737687059860,-151.0,0.000223,7]
[350203025,1737687059870,-222.390246,0.000223,7]
[350203026,1737687059879,-150.437707,0.000223,2]
[350203027,1737687059889,-191.20496438,0.0002232,2]
[350203028,1737687059983,-1504.44354021,0.0002232,2]
[350203029,1737687059995,-277.46854865,0.0002232,2]
[350203030,1737687060006,-26.88294676,0.0002232,2]
[350203031,1737687060017,-2755.21,0.00022328,3]
[350203032,1737687060027,-2566.51,0.00022328,3]
[350203033,1737687060036,-1164.41,0.00022328,3]
[350203034,1737687060047,-2795.13,0.00022328,3]
[350203035,1737687060057,-841.58,0.00022328,3]
[350203036,1737687060066,-167.66,0.00022328,3]
[350203037,1737687060076,-888.1681064,0.00022328,3]
[350203038,1737687060086,-678.30647616,0.00022328,3]
[350203039,1737687060096,-3294.93867308,0.00022328,3]
[350203040,1737687060114,-1072.27,0.00021095,3]
[350203041,1737687060123,-7171.36075679,0.00022328,3]
[350203042,1737687060254,-1715.29281916,0.00022328,3]
[350203043,1737687060264,-581.22670803,0.00022328,3]
[350203044,1737687060274,-1061.49825008,0.00022328,3]
[350203045,1737687060344,-2174.04986567,0.00022328,3]
[350203046,1737687060355,-1202.23248124,0.00022328,3]
[350203047,1737687060365,-1819.39869654,0.00022328,3]
[350203048,1737687060375,-522.82398402,0.00022328,3]
[350203049,1737687060385,-536.27,0.00022328,3]
[350203050,1737687060395,-502.45086953,0.00022328,3]
[350203051,1737687060405,-2877.98,0.00022328,3]
[350203052,1737687060415,-1032.15998705,0.00022328,3]
[350203053,1737687060426,-551.87877714,0.00022328,3]
[350203054,1737687060437,-606.23,0.00022328,3]
[350203055,1737687060447,-880.95451252,0.00022383,3]
[350203056,1737687060457,-250.0,0.00022439,2]
[350203057,1737687060467,-500.0,0.00022465,3]
[350203058,1737687060477,-903.99284542,0.00022465,3]
[350203059,1737687060487,-500.0,0.00022466,3]
[350203060,1737687060496,-2457.01072853,0.000225,3]
[350203061,1737687060509,-3050.72256627,0.000225,3]
[350203062,1737687060519,-8724.16239082,0.000225,2]
[350203063,1737687060543,-502.38977777,0.00019178,2]
[350203064,1737687060553,-536.42983872,0.000225,2]
[350203065,1737687060564,-531.96040214,0.000225,2]
[350203066,1737687060733,-306.84895474,0.00019178,2]
[350203067,1737687060744,-193.15104526,0.00019178,2]
[350203068,1737687060759,-500.0,0.00019178,2]
[350203069,1737687060781,-290.6,0.00019315,3]
[350203070,1737687060799,-151.0,0.00019452,2]
[350203071,1737687060819,-151.0,0.00019452,2]
[350203072,1737687060840,-151.0,0.00019465,2]
[350203073,1737687060857,-151.0,0.00019589,2]
[350203074,1737687060876,-151.0,0.00019602,2]
[350203075,1737687060890,-395.0,0.00020728,2]
[350203076,1737687060908,-1072.27,0.00021232,3]
[350203077,1737687060926,-1072.27,0.00021369,3]
[350203078,1737687060949,-1072.27,0.00021506,3]
[350203079,1737687060963,-1072.27,0.00021643,3]
[350203080,1737687060981,-1072.27,0.0002178,3]
[350203081,1737687060998,-1072.27,0.00021917,3]
[350203082,1737687061014,-1072.27,0.00022054,3]
[350203083,1737687061027,-43964.23636728,0.000225,2]
[350203084,1737687061042,-241.271649,0.000225,7]
[350203085,1737687061057,-244.800653,0.000225,7]
[350203086,1737687061072,-151.0,0.000225,10]
[350203087,1737687061086,-249.916237,0.000225,7]
[350203088,1737687061101,-249.916237,0.000225,7]
[350203089,1737687061116,-1000.0,0.00022521,2]
[350203090,1737687061131,-880.95451252,0.00022521,3]
[350203091,1737687061140,-732.1461404,0.00022525,2]
[350203092,1737687061150,-679.4985614,0.0002259,2]
[350203093,1737687061159,-4905.61,0.000226,14]
[350203094,1737687061168,-7818.38,0.000226,2]
[350203095,1737687061180,-184.99,0.00022652,2]
[350203096,1737687061190,-168.01,0.00022652,2]
[350203097,1737687061199,-880.95451252,0.00022659,3]
[350203098,1737687061209,-159.58041,0.00022717,14]
[350203099,1737687061218,-504.0345725,0.00022739,3]
[350203100,1737687061227,-500.0,0.0002274,3]
[350203101,1737687061236,-84110.58112952,0.0002275,2]
[350203102,1737687061248,-10332.55289816,0.0002275,2]
[350203103,1737687061264,-1072.27,0.00022191,3]
[350203104,1737687061273,-15203.75298613,0.0002275,2]
[350203105,1737687061283,-155.325768,0.0002275,7]
[350203106,1737687061293,-241.271649,0.0002275,7]
[350203107,1737687061303,-249.916237,0.0002275,7]
[350203108,1737687061313,-249.916237,0.0002275,7]
[350203109,1737687061323,-500.0,0.00022773,2]
[350203110,1737687061333,-880.95451252,0.00022797,3]
[350203111,1737687061343,-151.0,0.000228,7]
[350203112,1737687061353,-64947.84001732,0.0002287,2]
[350203113,1737687061526,-241.271649,0.0002287,7]
[350203114,1737687061543,-241.271649,0.0002287,7]
[350203115,1737687061554,-185.2,0.00022879,2]
[350203116,1737687061565,-2912.03301561,0.0002289,5]
[350203117,1737687061575,-2000.0,0.00022897,2]
[350203118,1737687061585,-4007.5360665,0.00022912,2]
[350203119,1737687061596,-880.95451252,0.00022934,3]
[350203120,1737687061606,-160.0,0.0002295,5]
[350203121,1737687061615,-160.98583136,0.0002295,5]
[350203122,1737687061625,-453.46370002,0.00022987,2]
[350203123,1737687061635,-244.60712819,0.00023,2]
[350203124,1737687061645,-84389.50974527,0.00023,2]
[350203125,1737687061657,-34279.07020295,0.00023,2]
[350203126,1737687061668,-713.95701685,0.00023,2]
[350203127,1737687061720,-500.0,0.00019178,2]
[350203128,1737687061730,-506.70891278,0.00019178,2]
[350203129,1737687061740,-348.02,0.00019315,3]
[350203130,1737687061749,-233.7072922,0.00019726,2]
[350203131,1737687061759,-1072.29,0.00022328,3]
[350203132,1737687061769,-7305.99476431,0.00023,2]
[350203133,1737687061779,-11261.2600695,0.00023,3]
[350203134,1737687061789,-495.04638723,0.00023,10]
[350203135,1737687061802,-5154.0,0.00023,10]
[350203136,1737687061888,-254.9237993,0.00019178,2]
[350203137,1737687061897,-500.0,0.00019178,2]
[350203138,1737687061907,-427.30766007,0.00019178,2]
[350203139,1737688071194,163.27562,0.00013973,2]
[350203144,1737688232200,-300.0,0.00018211,2]
[350203145,1737688232210,-318.6632773,0.00018212,2]
[350203146,1737688232221,-12923.02668429,0.00018212,2]
[350203147,1737688232232,-8317.37378204,0.00018212,2]
[350203148,1737688232244,-525.05090305,0.00018212,2]
[350203149,1737688232305,-2815.88535332,0.00018212,2]
[350203150,1737688232319,-1030.39459883,0.00018861,2]
[350203151,1737688232328,-196.98100127,0.00019077,2]
[350203152,1737688232338,-181.64306146,0.00019078,2]
[350203153,1737688232347,-284.10605221,0.00019177,2]
[350203154,1737688232357,-500.0,0.00019177,2]
[350203155,1737688232366,-466.72960368,0.00019177,2]
[350203156,1737688232377,-268.2324444,0.00019177,2]
[350203157,1737688232386,-500.0,0.00019177,2]
[350203158,1737688232396,-500.0,0.00019177,2]
[350203159,1737688232406,-500.0,0.00019177,2]
[350203160,1737688232415,-500.0,0.00019177,2]
[350203161,1737688232425,-500.0,0.00019177,2]
[350203162,1737688232434,-500.0,0.00019177,2]
[350203163,1737688232443,-519.06120247,0.00019177,2]
[350203164,1737688232453,-500.0,0.00019177,2]
[350203165,1737688232462,-500.0,0.00019177,2]
[350203166,1737688232471,-500.0,0.00019177,2]
[350203167,1737688232480,-500.0,0.00019177,2]
[350203168,1737688232490,-380.08999096,0.00019177,2]
[350203169,1737688232499,-380.7316574,0.00019177,2]
[350203170,1737688232508,-500.0,0.00019177,2]
[350203171,1737688232517,-560.79159337,0.00019177,2]
[350203172,1737688232526,-500.0,0.00019177,2]
[350203173,1737688232536,-500.0,0.00019177,2]
[350203174,1737688232546,-500.0,0.00019177,2]
[350203175,1737688232556,-500.0,0.00019177,2]
[350203176,1737688232566,-500.0,0.00019177,2]
[350203177,1737688232575,-494.21380053,0.00019177,2]
[350203178,1737688232584,-500.0,0.00019177,2]
[350203179,1737688232594,-287.21963973,0.00019177,2]
[350203180,1737688232606,-212.78036027,0.00019177,2]
[350203181,1737688232616,-500.0,0.00019177,2]
[350203182,1737688232627,-500.0,0.00019177,2]
[350203183,1737688232636,-500.0,0.00019177,2]
[350203184,1737688232645,-500.0,0.00019177,2]
[350203185,1737688232655,-500.0,0.00019177,2]
[350203186,1737688232665,-500.0,0.00019177,2]
[350203187,1737688232675,-500.0,0.00019177,2]
[350203188,1737688232684,-500.0,0.00019177,2]
[350203189,1737688232694,-500.0,0.00019177,2]
[350203190,1737688232705,-500.0,0.00019177,2]
[350203191,1737688232715,-500.0,0.00019177,2]
[350203192,1737688232724,-500.0,0.00019177,2]